[Event "50th La Roda Open 2024"]
[Site "La Roda"]
[Date "2024.03.28"]
[Round "2.2"]
[White "Louis, Corentin"]
[Black "Xu, Xiangyu"]
[Result "0-1"]
[ECO "A03"]
[WhiteElo "2091"]
[BlackElo "2623"]
[Annotator "TA"]
[PlyCount "92"]
[EventDate "2024.03.27"]
[EventType "swiss"]
[EventCountry "ESP"]
[SourceTitle "playchess.com"]
[Source "ChessBase"]
[SourceQuality "1"]
[TimeControl "5400+30"]

{[%evp 10,92,-4,-2,14,-33,-3,-23,-4,-66,-59,-53,-77,-77,-43,-34,-37,-28,-3,-80,-32,-21,-40,-35,-34,-45,-43,-48,-51,-41,-38,-37,-44,-43,-42,-42,-47,-47,-47,-40,-47,-41,-44,-41,0,0,0,0,34,37,34,26,27,0,0,0,0,-20,-13,-12,-10,-25,-28,-20,0,-10,-10,-42,-18,-45,-59,-137,-143,-134,-132,-131,-126,-196,-198,-193,-200,-661,-653,-860,-848]} 1. f4 {[%emt 0:05:44]} d5 {[%emt 0:00:23]} 2. Nf3 {[%emt 0:00:09]} g6 {[%emt 0:00:19]} 3. g3 {[%emt 0:00:08]} Bg7 {[%emt 0:00:05]} 4. Bg2 {[%emt 0:00:06]} Nf6 {[%emt 0:00:07]} 5. O-O {[%emt 0:00:10]} O-O {[%emt 0:00:11]} 6. d3 {[%emt 0:00:11]} Re8 {[%emt 0:00:29]} 7. c3 {[%emt 0:07:14]} (7. Nc3 $11) 7... Nbd7 {[%emt 0:04:01]} 8. Ne5 {[%emt 0:11:47]} c6 {[%emt 0:02:15] Schwarz hat minimalen Vorteil.} 9. Nxd7 {[%emt 0:07:01]} (9. Qb3 $11) 9... Bxd7 $15 {[%emt 0:05:59]} 10. e4 {[%emt 0:02:14]} Qb6+ {[%emt 0:06:54]} 11. Kh1 {[%emt 0:00:14]} dxe4 {[%emt 0:00:09] Schwarz steht aktiver.} 12. dxe4 {[%emt 0:00:15]} Rad8 {[%emt 0:00:10]} 13. Nd2 {[%emt 0:08:15][%cal Bb1d2,Bd2c4,Bc4a5,Ba5c6][%mdl 32]} Qa6 {[%emt 0:04:47] Es drohte Qe2} 14. Qc2 {[%emt 0:07:31]} (14. e5 $1 $11) 14... Be6 {[%emt 0:03:41]} (14... c5 $17 {Droht stark ...Ng4.} 15. e5 Ng4) 15. Re1 {[%emt 0:09:21]} Ng4 {[%emt 0:05:00]} (15... Bxa2 $2 16. b3 $18) 16. Bf1 {[%emt 0:04:37]} Qb6 {[%emt 0:13:38]} 17. Nc4 {[%emt 0:04:12] Lässt Ne3 nicht zu} Qf2 {[%emt 0:00:53]} (17... Nf2+ 18. Kg2 Bxc4 19. Bxc4 $18) 18. Qxf2 {[%emt 0:02:04]} Nxf2+ {[%emt 0:00:06]} 19. Kg1 {[%emt 0:02:30]} Nd3 {[%emt 0:00:08]} 20. Bxd3 {[%emt 0:00:09]} Rxd3 {[%emt 0:00:05]} 21. Na5 {[%emt 0:00:32]} Rd7 {[%emt 0:04:39]} 22. Be3 {[%emt 0:00:40][%cal Oa1d1] [#]} c5 $1 {[%emt 0:01:29]} 23. Red1 {[%emt 0:03:26]} Red8 {[%emt 0:06:20]} 24. Rxd7 {[%emt 0:00:05]} Rxd7 {[%emt 0:00:05]} 25. Kf2 {[%emt 0:01:08]} b6 {[%emt 0:02:06]} 26. Nc6 {[%emt 0:01:40]} f6 {[%emt 0:00:44]} 27. b4 $1 {[%emt 0:00:40]} Rc7 {[%emt 0:27:27]} 28. Nd8 {[%emt 0:01:25]} Bc8 {[%emt 0:00:04]} 29. bxc5 {[%emt 0:00:37]} bxc5 {[%emt 0:00:04] Zielt auf ...Kf8 ab.} 30. Rb1 {[%emt 0:01:10]} Bf8 {[%emt 0:00:06]} 31. e5 {[%emt 0:01:49]} fxe5 {[%emt 0:07:28]} 32. fxe5 {[%emt 0:00:06]} Bg7 {[%emt 0:00:37]} 33. e6 {[%emt 0:08:35] Und Bf4 würde nun gewinnen.} Ba6 {[%emt 0:00:40]} (33... Bxc3 $2 34. Bf4 Bd4+ 35. Kf3 Bxe6 36. Bxc7 $18 (36. Nxe6 Rd7 $18)) 34. Rb8 {[%emt 0:00:28] Weiss droht Nb7+ und Matt.} Bxc3 {[%emt 0:00:13]} 35. Nb7+ {[%emt 0:03:14]} Kg7 {[%emt 0:00:03]} 36. Nxc5 {[%emt 0:00:11]} Bc8 {[%emt 0:01:08]} 37. Rb3 {[%emt 0:01:15]} Be5 {[%emt 0:00:13]} 38. h4 {[%emt 0:01:02]} Kf6 {[%emt 0:01:02]} 39. Bg5+ {[%emt 0:00:11]} Kf5 {[%emt 0:00:29]} 40. Nd3 {[%emt 0:01:41]} (40. Be3 $15) 40... Bd4+ $17 {[%emt 0:00:08]} ({Ein No Go ist} 40... Kxe6 $6 41. Nxe5 Rc2+ 42. Kf3 Kxe5 43. Re3+ Kd6 44. Bxe7+ Kd7 45. Bg5 $11) (40... Bxe6 $2 {verliert.} 41. Rb5 Kg4 (41... Rc2+ $2 42. Kf3 $18) 42. Rxe5 $18 (42. Nxe5+ Kh3 $18)) 41. Be3 {[%emt 0:02:56]} Rc2+ {[%emt 0:01:36]} 42. Kf3 {[%emt 0:00:06]} Bxe3 {[%emt 0:00:03] Das Läuferpaar ist gut.} 43. Rb5+ {[%emt 0:00:52]} (43. g4+ $17 Kxe6 44. Kxe3) 43... Kxe6 $19 {[%emt 0:01:28]} 44. Kxe3 {[%emt 0:00:09]} Rxa2 {[%emt 0:00:04] Droht ...Ra3 und aus.} 45. h5 $2 {[%emt 0:00:52]} (45. Rc5 Bd7 46. Nf2) 45... Ra3 {[%emt 0:00:23]} 46. Kd4 {[%emt 0:00:53] [#]} Rxd3+ $1 {[%emt 0:00:06] Gewichteter Fehlerwert: Weiß=0.30/Schwarz=0.08 (makellos) .  Fehler:       	Weiß=6     	Schwarz=1     Ungenau:       	Weiß=4     	Schwarz=4     OK:         	Weiß=21    	Schwarz=14    Bester:       	Weiß=3     	Schwarz=6     Stark:        	Weiß=1     	---} 0-1

[Event "50th La Roda Open 2024"]
[Site "La Roda"]
[Date "2024.03.28"]
[Round "2.3"]
[White "Karthik Venkataraman"]
[Black "Yuste Valenzuela, Alejandro"]
[Result "1-0"]
[ECO "A25"]
[WhiteElo "2609"]
[BlackElo "2106"]
[Annotator "TA"]
[PlyCount "65"]
[EventDate "2024.03.27"]
[EventType "swiss"]
[EventCountry "ESP"]
[SourceTitle "playchess.com"]
[Source "ChessBase"]
[SourceQuality "1"]
[TimeControl "5400+30"]

{[%evp 14,65,31,0,0,0,0,-8,-8,-38,-30,-36,-35,-42,-42,-48,-46,-50,-53,-52,-52,-52,29,-26,35,0,65,86,117,81,105,114,196,209,300,274,726,748,783,761,896,880,836,834,1176,1147,2334,2316,1866,1684,2839,2696,29990,29991]} 1. c4 {[%emt 0:02:51]} e5 {[%emt 0:00:28]} 2. Nc3 {[%emt 0:00:10]} Nc6 {[%emt 0:00:31]} 3. Nf3 {[%emt 0:00:07]} g6 {[%emt 0:01:38]} 4. e3 {[%emt 0:00:06]} Bg7 {[%emt 0:01:00]} 5. d4 {[%emt 0:00:47]} d6 {[%emt 0:00:43]} 6. Be2 {[%emt 0:02:05]} Nf6 {[%emt 0:01:03]} 7. b3 {[%emt 0:05:51]} O-O {[%emt 0:03:07]} 8. Bb2 {[%emt 0:01:23]} Bf5 {[%emt 0:05:50]} 9. d5 {[%emt 0:05:48]} Nb4 {[%emt 0:05:24]} 10. Rc1 {[%emt 0:00:13] Dodges Nc2+} a5 {[%emt 0:01:24] The position is equal.} 11. h3 {[%emt 0:00:25]} Ne4 {[%emt 0:07:20]} 12. Nxe4 {[%emt 0:01:15]} Bxe4 {[%emt 0:00:06]} 13. a3 {[%emt 0:00:04]} Bxf3 {[%emt 0:10:49]} 14. gxf3 {[%emt 0:00:46]} Na6 {[%emt 0:00:55]} 15. O-O {[%emt 0:01:47]} Qh4 {[%emt 0:03:17]} 16. Kh2 {[%emt 0:00:48]} f5 {[%emt 0:02:23]} 17. Bc3 {[%emt 0:00:11]} Bh6 {[%emt 0:06:19]} ({Black should play} 17... Rf7 $15) 18. b4 {[%emt 0:13:42]} (18. Bxa5 $142 e4 19. f4) 18... g5 {[%emt 0:10:53]} (18... axb4 $11 19. axb4 Bg7) 19. Kg2 {[%emt 0:02:42]} Rf6 {[%emt 0:04:34]} (19... Bg7 $11) 20. c5 {[%emt 0:04:48]} Raf8 {[%emt 0:06:43]} 21. Qe1 {[%emt 0:19:07]} (21. bxa5 $2 g4 22. fxg4 Bxe3 (22... dxc5 $2 23. Qe1 $18) (22... Nxc5 23. f4 $16) (22... fxg4 $2 23. Bxg4 Rxf2+ 24. Rxf2 $19) 23. fxe3 fxg4 24. Bxg4 (24. hxg4 $2 Rf2+ 25. Rxf2 Rxf2+ 26. Kg1 Qh2#) 24... Rxf1 25. Qxf1 Rxf1 26. Rxf1 Nxc5 $19 (26... dxc5 $2 27. Be6+ Kg7 28. Bxe5+ Kg6 29. Bf7+ Kh6 30. Rf6+ $18)) 21... Bg7 {[%emt 0:08:05]} 22. Rh1 {[%emt 0:03:36]} (22. bxa5 Nxc5 (22... dxc5 23. Rh1 $16) 23. Rh1 (23. Bxe5 $2 Rh6 $19) 23... R6f7 $15) 22... Rg6 {[%emt 0:02:06] [#]} (22... axb4 $16 23. axb4 Nb8) 23. c6 $1 $18 {[%emt 0:01:42]} (23. bxa5 Nxc5 (23... dxc5 24. Rb1 $18) 24. Bb4 b6 $16) 23... e4 {[%emt 0:00:40]} (23... b5 {was necessary.}) 24. cxb7 {[%emt 0:03:51]} (24. bxa5 exf3+ 25. Bxf3 bxc6 $16) 24... f4 $2 {[%emt 0:04:07]} (24... axb4 25. Bxb4 (25. axb4 Nb8 $18) 25... exf3+ 26. Bxf3 g4 27. hxg4 Qe7) 25. Bxa6 {[%emt 0:13:13]} exf3+ {[%emt 0:02:01]} 26. Kf1 {[%emt 0:00:18]} g4 {[%emt 0:00:52][%cal Bg5g4,Bg4h3,Bh3h2][%mdl 32]} 27. exf4 {[%emt 0:00:30]} (27. bxa5 $2 g3 (27... gxh3 28. exf4 Qg4 29. Qe4 $11) 28. fxg3 fxg3 $19) 27... gxh3 {[%emt 0:00:42]} 28. Qe3 {[%emt 0:01:50]} (28. bxa5 Qg4 29. Qe4 Qg2+ 30. Ke1 Qxh1+ 31. Kd2 Bxc3+ 32. Rxc3 h2 (32... Qg1 33. Rxf3 h2 34. Rh3 $16) 33. Rxc7 (33. Rxf3 $2 Qg2 $19) 33... Qa1 $19) 28... h2 {[%emt 0:02:53]} 29. Qxf3 {[%emt 0:00:56]} ({Not} 29. Bxg7 $2 Rg1+ 30. Rxg1 Qh3+ (30... h1=B 31. Qe6+ Rf7 32. b8=Q+) 31. Ke1 hxg1=Q+ (31... hxg1=R+ $2 {loses.} 32. Kd2 $18) 32. Kd2 Qxg7 $19) 29... Rxf4 {[%emt 0:01:13]} 30. b8=Q+ {[%emt 0:01:46]} Bf8 {[%emt 0:00:15] [#]} 31. Qd8 $3 {[%emt 0:02:51]} Qh6 {[%emt 0:04:33]} (31... Qxd8 32. Qxf4) 32. Bd2 {[%emt 0:00:25]} Qg7 {[%emt 0:01:44]} 33. Qxf4 {[%emt 0:00:21] Weighted Error Value: White=0.13 (very precise) /Black=0.66.  Mistake:       	White=1     	Black=6      Inaccurate:     	White=3     	Black=1      OK:         	White=6     	Black=5      Strong:       	White=1     	---} 1-0

[Event "50th La Roda Open 2024"]
[Site "La Roda"]
[Date "2024.03.28"]
[Round "2.4"]
[White "Roquero Redondo, Miguel"]
[Black "Pranav Vijay"]
[Result "0-1"]
[ECO "C79"]
[WhiteElo "2086"]
[BlackElo "2252"]
[Annotator "RC"]
[PlyCount "84"]
[EventDate "2024.03.27"]
[EventType "swiss"]
[EventCountry "ESP"]
[SourceTitle "playchess.com"]
[Source "ChessBase"]
[SourceQuality "1"]
[TimeControl "5400+30"]

1. e4 {[%emt 0:00:21]} e5 {[%emt 0:00:48]} 2. Nf3 {[%emt 0:00:02]} Nc6 {[%emt 0:00:12]} 3. Bb5 {[%emt 0:00:08]} a6 {[%emt 0:00:11]} 4. Ba4 {[%emt 0:00:34]} Nf6 {[%emt 0:00:09]} 5. O-O {[%emt 0:00:10]} d6 {[%emt 0:00:20]} 6. c4 {[%emt 0:05:15]} Bg4 {[%emt 0:06:33]} 7. h3 {[%emt 0:05:09]} Bxf3 {[%emt 0:00:17]} 8. Qxf3 {[%emt 0:00:10]} Be7 {[%emt 0:02:55]} 9. Qb3 {[%emt 0:03:27]} O-O {[%emt 0:03:20]} 10. Bxc6 {[%emt 0:19:07]} bxc6 {[%emt 0:00:08]} 11. Nc3 {[%emt 0:02:02]} a5 {[%emt 0:08:37]} 12. d3 {[%emt 0:01:00]} Nd7 {[%emt 0:01:58]} 13. f4 {[%emt 0:05:17]} exf4 {[%emt 0:03:35]} 14. Bxf4 {[%emt 0:01:08]} Bf6 {[%emt 0:05:03]} 15. Be3 {[%emt 0:04:43]} Bg5 {[%emt 0:13:01]} 16. Bf2 {[%emt 0:04:57]} Ne5 {[%emt 0:03:09]} 17. Qc2 {[%emt 0:02:21]} c5 {[%emt 0:01:14]} 18. Rad1 {[%emt 0:04:42]} Rb8 {[%emt 0:06:02]} 19. b3 {[%emt 0:00:36]} Nc6 {[%emt 0:02:50]} 20. Kh1 {[%emt 0:05:17]} Nd4 {[%emt 0:07:48]} 21. Bxd4 {[%emt 0:03:34]} cxd4 {[%emt 0:00:01]} 22. Ne2 {[%emt 0:00:32]} Be3 {[%emt 0:01:23]} 23. Ng3 {[%emt 0:04:06]} g6 {[%emt 0:00:40]} 24. Rf3 {[%emt 0:02:43]} c6 {[%emt 0:00:30]} 25. Nf1 {[%emt 0:00:30]} Bh6 {[%emt 0:05:10]} 26. Qf2 {[%emt 0:06:23]} c5 27. Nh2 {[%emt 0:19:46]} Be3 {[%emt 0:02:22]} 28. Qg3 {[%emt 0:00:00]} h5 {[%emt 0:00:16]} 29. Rdf1 {[%emt 0:00:00]} Bg5 {[%emt 0:00:30]} 30. Qf2 {[%emt 0:00:00]} Qe7 {[%emt 0:01:02]} 31. g3 {[%emt 0:00:00]} a4 {[%emt 0:00:43]} 32. bxa4 {[%emt 0:00:00]} Rb4 {[%emt 0:00:19]} 33. h4 {[%emt 0:00:00]} Be3 {[%emt 0:00:07]} 34. Qg2 {[%emt 0:03:30]} Rxa4 {[%emt 0:12:13]} 35. g4 {[%emt 0:00:00]} Qxh4 {[%emt 0:00:07]} 36. gxh5 {[%emt 0:00:00]} Qxh5 {[%emt 0:14:57]} 37. Rh3 {[%emt 0:00:00]} Rxa2 {[%emt 0:00:00]} 38. Qg3 {[%emt 0:00:00]} Qe2 {[%emt 0:00:00]} 39. Qg4 {[%emt 0:00:00]} Qxg4 {[%emt 0:00:00]} 40. Nxg4 {[%emt 0:00:00]} Bg5 {[%emt 0:00:00]} 41. Nf6+ {[%emt 0:00:00]} Bxf6 {[%emt 0:00:00]} 42. Rxf6 {[%emt 0:04:00]} Rb8 {[%emt 0:00:00]} 0-1

[Event "50th La Roda Open 2024"]
[Site "La Roda"]
[Date "2024.03.28"]
[Round "2.5"]
[White "Albornoz Cabrera, Carlos Daniel"]
[Black "Hurtado, Felipe"]
[Result "1/2-1/2"]
[ECO "B96"]
[WhiteElo "2603"]
[BlackElo "2087"]
[Annotator "TA"]
[PlyCount "106"]
[EventDate "2024.03.27"]
[EventType "swiss"]
[EventCountry "ESP"]
[SourceTitle "playchess.com"]
[Source "ChessBase"]
[SourceQuality "1"]
[TimeControl "5400+30"]

{[%evp 16,106,0,5,10,10,8,11,6,0,4,8,49,0,0,6,24,0,19,0,37,30,35,44,51,53,53,-29,-14,-29,1,-41,-22,-41,-32,-29,0,0,0,0,0,0,0,-7,0,-75,-32,-38,-39,-49,-37,-39,-44,-88,-89,-145,-14,-34,-9,-5,-12,-4,-18,-16,0,-71,-67,-91,0,0,0,-80,0,-16,-15,-15,-17,-12,-8,-8,-8,-119,-119,-130,-8,-8,-8,-22,-31,-34,0,-70,0]} 1. e4 {[%emt 0:00:03]} c5 {[%emt 0:00:09]} 2. Nf3 {[%emt 0:00:03]} d6 {[%emt 0:00:05]} 3. d4 {[%emt 0:00:04]} cxd4 {[%emt 0:00:06]} 4. Nxd4 {[%emt 0:00:04]} Nf6 {[%emt 0:00:09]} 5. Nc3 {[%emt 0:00:03]} a6 {[%emt 0:00:07]} 6. Bg5 {[%emt 0:00:03]} e6 {[%emt 0:00:13]} 7. f4 {[%emt 0:00:04]} h6 {[%emt 0:00:08]} 8. Bh4 {[%emt 0:00:04]} Qb6 {[%emt 0:00:06]} 9. a3 {[%emt 0:00:11]} Be7 {[%emt 0:00:14][%cal Of6e4]} (9... Qxb2 $2 10. Na4 $18) 10. Bf2 {[%emt 0:00:35][%cal Od4e6]} Qc7 {[%emt 0:00:17]} (10... Qxb2 $2 {perishes.} 11. Na4 $18) 11. Qf3 {[%emt 0:00:20]} Nbd7 {[%emt 0:00:41][%cal Bb8d7,Bd7c5,Bc5e4][%mdl 32] The position is equal.} 12. O-O-O {[%emt 0:00:51]} b5 {[%emt 0:00:21]} 13. g4 {[%emt 0:00:21]} Bb7 {[%emt 0:00:50]} 14. h4 {[%emt 0:02:08]} Nc5 {[%emt 0:00:44]} 15. Bd3 {[%emt 0:00:31]} d5 {[%emt 0:01:04]} 16. e5 {[%emt 0:00:46]} Nfe4 {[%emt 0:00:06]} 17. Bxe4 {[%emt 0:00:25]} Nxe4 {[%emt 0:00:21]} 18. Be1 {[%emt 0:05:33]} Rc8 {[%emt 0:14:18]} 19. Rh3 {[%emt 0:04:27]} Bc5 {[%emt 0:19:03]} 20. Kb1 {[%emt 0:11:41]} Qb6 {[%emt 0:06:18]} 21. Nce2 {[%emt 0:07:26]} (21. Nb3 $14) 21... a5 $1 $11 {[%emt 0:04:17]} 22. f5 {[%emt 0:07:35]} b4 {[%emt 0:03:02]} 23. a4 {[%emt 0:04:19][%cal Og4g5]} (23. fxe6 {seems wilder.} O-O 24. g5 bxa3 25. Qb3) 23... Ba6 {[%emt 0:05:39]} 24. g5 {[%emt 0:04:10]} Bxe2 {[%emt 0:07:24]} 25. Nxe2 {[%emt 0:00:22]} Qc7 {[%emt 0:12:35][%cal Oc5e3] Threatens to win with ...Be3!} 26. fxe6 {[%emt 0:08:30]} fxe6 {[%emt 0:02:29][%cal Oc5f2]} 27. Qh5+ {[%emt 0:11:43]} Qf7 {[%emt 0:06:52]} 28. Qxf7+ {[%emt 0:01:56]} Kxf7 {[%emt 0:00:02]} 29. Rf3+ {[%emt 0:00:06]} Ke8 {[%emt 0:00:09]} 30. Nf4 {[%emt 0:05:05]} (30. g6 $1 $11 Rf8 31. Rxf8+ Bxf8 32. Nd4) 30... Rf8 {[%emt 0:00:29]} 31. Rdd3 {[%emt 0:00:16]} Rc6 {[%emt 0:08:09]} 32. Nh5 {[%emt 0:03:48]} hxg5 {[%emt 0:01:59] Strongly threatening ...Rh8.} 33. Nxg7+ {[%emt 0:01:05]} Kd7 {[%emt 0:00:16]} 34. Rxf8 {[%emt 0:03:55]} Bxf8 {[%emt 0:00:02]} 35. Rf3 {[%emt 0:00:09] [#]} (35. Nh5 $142) 35... Bxg7 {[%emt 0:03:13]} (35... Ke7 $1 $17 36. Nh5 g4) 36. Rf7+ {[%emt 0:00:01]} Kc8 {[%emt 0:00:30]} 37. Rxg7 {[%emt 0:00:01]} gxh4 {[%emt 0:00:13]} 38. Bxh4 {[%emt 0:01:17][%mdl 4096] Endgame. KRB-KRN} Nd2+ {[%emt 0:02:49]} 39. Kc1 {[%emt 0:00:01]} Nc4 {[%emt 0:00:02]} 40. Bf2 {[%emt 0:06:56]} (40. Rg8+ $11 {remains equal.} Kd7 41. Rg7+ Ke8 42. Rg8+ Kf7 43. Rg2) 40... Nxe5 $17 {[%emt 0:00:17]} 41. Rg8+ {[%emt 0:01:06]} Kb7 {[%emt 0:00:12]} 42. Rg7+ $1 {[%emt 0:00:16]} Kc8 {[%emt 0:00:06]} 43. Rg8+ $1 {[%emt 0:01:14]} Kb7 {[%emt 0:00:02]} (43... Kd7 $17 44. Rg7+ Ke8) 44. Bg3 {[%emt 0:02:40]} Nc4 {[%emt 0:00:50]} 45. Rb8+ $1 {[%emt 0:01:37]} Ka7 {[%emt 0:00:40] ...Ne3 is the strong threat.} 46. Rb5 $1 {[%emt 0:00:56]} Ka6 {[%emt 0:00:37]} 47. Bf2 {[%emt 0:00:40] Wards off Ne3} Ne5 {[%emt 0:02:06] ...Nd3+ would now be deadly.} 48. Kd1 {[%emt 0:01:49] [#]} (48. Kd2 $1 $11 {keeps the balance.}) 48... Nd7 $1 {[%emt 0:00:34]} 49. Kd2 {[%emt 0:01:31]} Rc4 {[%emt 0:01:04]} (49... Rc7 $17 50. Kd3 Ne5+ 51. Kd2 Nc4+ 52. Ke2 Rc6 (52... Nxb2 $2 {loses.} 53. Rb6+ Ka7 54. Rxb4+ Ka8 55. Rxb2 $18)) 50. b3 $11 {[%emt 0:00:37]} Rc8 {[%emt 0:00:23]} 51. Kd3 {[%emt 0:01:27]} Rc3+ {[%emt 0:00:07]} 52. Kd2 {[%emt 0:00:07]} Rc8 {[%emt 0:00:03]} 53. Kd3 $1 {[%emt 0:00:09]} Rc3+ {[%emt 0:00:01] Weighted Error Value: White=0.15 (very precise) /Black=0.19 (very precise) .  Mistake:       	White=5     	Black=4      Inaccurate:     	White=3     	Black=4      OK:         	White=17    	Black=12     Best:        	White=6     	Black=3      Strong:       	White=5     	Black=2} ({Better is} 53... Rc6 $1 $15) 1/2-1/2

[Event "50th La Roda Open 2024"]
[Site "La Roda"]
[Date "2024.03.28"]
[Round "2.6"]
[White "Portero Rubio, Martin"]
[Black "Iturrizaga Bonelli, Eduardo"]
[Result "0-1"]
[ECO "B33"]
[WhiteElo "2067"]
[BlackElo "2588"]
[Annotator "TA"]
[PlyCount "72"]
[EventDate "2024.03.27"]
[EventType "swiss"]
[EventCountry "ESP"]
[SourceTitle "playchess.com"]
[Source "ChessBase"]
[SourceQuality "1"]
[TimeControl "5400+30"]

{[%evp 12,72,39,0,54,53,63,56,43,47,89,89,95,0,111,93,119,52,47,45,60,75,53,56,110,-156,-155,-167,-145,-155,-174,-158,-109,-150,-161,-162,-161,-164,-152,-253,-247,-249,-235,-312,-313,-377,-384,-375,-383,-422,-416,-390,-396,-445,-416,-554,-543,-577,-575,-643,-643,-560,-576]} 1. e4 {[%emt 0:00:03]} c5 {[%emt 0:02:32]} 2. Nf3 {[%emt 0:00:05]} Nc6 {[%emt 0:01:11]} 3. d4 {[%emt 0:00:07]} cxd4 {[%emt 0:00:07]} 4. Nxd4 {[%emt 0:00:01]} Qb6 {[%emt 0:00:28]} 5. Nb3 {[%emt 0:02:43]} Nf6 {[%emt 0:00:08]} 6. Nc3 {[%emt 0:03:49]} e6 {[%emt 0:00:05]} 7. Qe2 {[%emt 0:03:59]} Qc7 {[%emt 0:02:29]} ({Black should try} 7... Bb4 $11) 8. g4 $14 {[%emt 0:08:27]} h6 {[%emt 0:02:27]} 9. Bd2 {[%emt 0:04:20]} a6 {[%emt 0:00:17] White is slightly better.} 10. O-O-O {[%emt 0:01:31]} Bd6 {[%emt 0:04:17]} 11. h4 {[%emt 0:04:43]} b5 {[%emt 0:00:05][%cal Bb7b5,Bb5b4][%mdl 32]} 12. Bg2 {[%emt 0:01:51]} (12. Kb1 $16) 12... Bb7 {[%emt 0:03:12]} (12... b4 $11 {remains equal.} 13. Na4 a5) 13. g5 $16 {[%emt 0:01:19]} Ng8 {[%emt 0:00:05]} 14. Rhf1 {[%emt 0:07:10]} (14. Kb1 $16) 14... hxg5 $14 {[%emt 0:05:19]} 15. hxg5 {[%emt 0:00:24]} Rh2 {[%emt 0:00:14]} 16. f4 {[%emt 0:01:21]} b4 {[%emt 0:00:58]} 17. Na4 {[%emt 0:04:19] Hoping for Be3.} Nce7 {[%emt 0:00:26] [#]} (17... Na5 $1 $14) 18. Be3 $2 {[%emt 0:06:14][%mdl 8192]} (18. Rf2 $1 $16 {stays on course. Strongly threatening e5.} Rc8 19. Be3 Rxg2 20. Rxg2 Bxe4 21. Nb6 Bxg2 22. Nxc8 Nxc8 23. Qxg2) 18... Bxe4 $17 {[%emt 0:07:56]} 19. Rf2 {[%emt 0:08:24]} Rxg2 {[%emt 0:11:51]} 20. Rxg2 {[%emt 0:00:29]} Bxg2 {[%emt 0:05:54]} 21. Qxg2 {[%emt 0:07:05]} Nd5 {[%emt 0:00:36]} ({Black should play} 21... Rc8 {[%cal Oe7d5] Threatens to win with ...Nd5!} 22. Nb6 Bxf4 23. Bxf4 Qxb6 (23... Qxf4+ 24. Kb1 $15)) 22. Nb6 {[%emt 0:14:36]} Nxb6 {[%emt 0:01:00]} 23. Bxb6 {[%emt 0:00:51]} Bxf4+ {[%emt 0:00:05]} 24. Kb1 {[%emt 0:00:10]} Qc6 {[%emt 0:00:04]} (24... Qxb6 $2 {loses.} 25. Qxa8+ Qd8 26. Qxa6 Bxg5 27. Qb5 $18) 25. Qf2 {[%emt 0:01:49]} (25. Qg4 $17) 25... Bxg5 $19 {[%emt 0:00:17]} 26. Na5 {[%emt 0:02:04]} Qe4 {[%emt 0:02:17]} 27. Qc5 {[%emt 0:03:17]} Be7 {[%emt 0:01:54]} 28. Qc7 {[%emt 0:02:21]} Nf6 {[%emt 0:00:06]} 29. Bc5 {[%emt 0:06:19]} Qf3 {[%emt 0:00:59]} 30. Rc1 {[%emt 0:01:33]} Qd5 {[%emt 0:00:47]} 31. Bxe7 {[%emt 0:02:09]} Kxe7 {[%emt 0:00:06]} 32. Nc4 {[%emt 0:01:23]} Qc6 {[%emt 0:02:35] Prevents Nb6} 33. Qf4 {[%emt 0:00:01] [#]} g5 $1 {[%emt 0:00:58] Black is clearly winning.} 34. Qf1 {[%emt 0:01:26]} (34. Qd4 Qd5) 34... Ne4 {[%emt 0:01:13][%cal Oc6c4] Prevents Nd2} 35. Rd1 {[%emt 0:00:54] aiming for Ne5.} Rc8 {[%emt 0:00:52]} 36. Ne3 {[%emt 0:00:35]} Qb5 {[%emt 0:00:46] Weighted Error Value: White=0.45/Black=0.18 (very precise) .  Mistake:       	White=4     	Black=3      Inaccurate:     	White=3     	Black=1      OK:         	White=8     	Black=17     Best:        	White=1     	Black=1} 0-1